bitfinex-derivatives/quotes_ETHF0:USTF0_20250212
["timestamp","ask_amount","ask_price","bid_price","bid_amount"]
[1739402296762,6.35052525,2757.3,2756.9,1.2264]
[1739402296966,2.237,2757.2,2757.1,0.72527]
[1739402297462,2.237,2757.2,2756.9,1.2264]
[1739402297764,2.237,2757.2,2757.0,0.72531]
[1739402298163,2.237,2757.2,2757.1,0.72529]
[1739402298967,2.237,2757.2,2757.0,0.72531]
[1739402299165,2.237,2757.2,2756.7,1.23424939]
[1739402299367,3.2078,2757.0,2756.7,1.23424939]
[1739402299868,3.2078,2757.0,2756.0,3.62785]
[1739402299869,6.34507586,2757.0,2756.1,1.2334]
[1739402300066,6.34507586,2756.6,2756.1,1.2334]
[1739402300267,3.3913,2756.5,2756.1,1.2334]
[1739402300462,3.3913,2756.5,2756.2,0.72553]
[1739402300964,4.11675,2756.5,2756.1,1.95894]
[1739402301164,3.2078,2756.3,2756.1,1.95894]
[1739402301356,3.2078,2756.3,2756.1,1.2334]
[1739402301562,3.2078,2756.3,2756.1,1.95894]
[1739402302063,3.2078,2756.3,2756.1,1.2334]
[1739402302260,3.2078,2756.3,2756.2,0.72553]
[1739402302464,3.2078,2756.3,2756.1,1.95894]
[1739402302972,6.34507586,2756.3,2755.7,1.2412]
[1739402303262,1.2103,2756.2,2756.0,0.72557]
[1739402303964,1.2103,2756.2,2755.7,1.2412]
[1739402304168,3.2078,2756.0,2755.9,0.72561]
[1739402304362,3.2078,2756.0,2755.7,1.2412]
[1739402304763,3.2078,2756.0,2755.8,0.72563]
[1739402305569,2.235,2755.9,2755.3,1.2147]
[1739402305764,3.2078,2755.6,2755.3,1.2147]
[1739402306368,3.2078,2755.6,2754.7,0.72591]
[1739402306369,3.13727586,2755.4,2754.7,0.72591]
[1739402306564,3.13727586,2755.4,2755.1,0.72582]
[1739402306565,3.2078,2755.2,2755.1,0.72582]
[1739402307064,3.2078,2755.2,2754.8,1.1637]
[1739402307271,3.2078,2755.2,2755.0,0.72582]
[1739402307666,3.2078,2755.2,2754.8,1.1637]
[1739402307866,3.2078,2754.9,2754.8,1.1637]
[1739402308173,0.7259,2754.8,2754.3,3.2078]
[1739402308472,3.2078,2754.6,2754.4,0.72599]
[1739402308666,3.2078,2754.6,2754.2,2.4574]
[1739402308867,3.2078,2754.6,2754.2,3.18344]
[1739402309074,3.2078,2754.6,2754.3,0.72602]
[1739402309574,3.2078,2754.6,2754.2,3.18343]
[1739402310268,3.2078,2754.6,2754.2,2.4574]
[1739402310466,3.2078,2754.6,2754.2,3.18344]
[1739402310668,3.2078,2754.3,2753.5,3.2078]
[1739402310976,0.72625,2753.5,2752.5,3.2078]
[1739402311174,3.2078,2753.2,2752.6,1.2475]
[1739402311364,7.07681514,2753.2,2752.7,1.2338]
[1739402311571,0.72645,2752.7,2752.6,1.2475]
[1739402312070,0.72648,2752.6,2752.2,0.18032744]
[1739402312271,0.72648,2752.6,2752.1,4.4416]
[1739402312668,0.00544939,2752.6,2752.1,4.4416]
[1739402312870,3.2078,2752.3,2752.1,1.2338]
[1739402313175,3.2078,2752.3,2752.0,1.2475]
[1739402313377,3.93436,2752.3,2752.0,1.2475]
[1739402313572,3.2078,2752.3,2752.0,1.2475]
[1739402313975,3.93438,2752.3,2752.0,1.2475]
[1739402314171,0.72661,2752.1,2752.0,1.2475]
[1739402314377,0.72659,2752.2,2752.0,1.2475]
[1739402314574,0.72661,2752.1,2752.0,1.2475]
[1739402314877,0.72664,2752.0,2751.5,6.0935]
[1739402315177,3.93445,2752.0,2751.5,6.0935]
[1739402315380,3.93445,2752.0,2751.5,6.82026]
[1739402315381,3.2078,2752.0,2751.5,6.82026]
[1739402315881,3.2078,2752.0,2751.5,6.0935]
[1739402316083,0.72667,2751.9,2751.5,6.0935]
[1739402316284,3.2078,2752.0,2751.4,1.2517]
[1739402316477,0.72667,2751.9,2751.4,1.2517]
[1739402316773,3.93445,2752.0,2751.4,1.97848]
[1739402317174,3.2078,2752.0,2751.5,0.72675]
[1739402317574,3.93445,2752.0,2751.4,1.97847]
[1739402317871,3.93445,2752.0,2751.4,1.2517]
[1739402318078,3.2078,2752.0,2751.5,0.72675]
[1739402318585,3.2078,2752.0,2751.5,0.72677]
[1739402318990,3.93445,2752.0,2751.5,0.72677]
[1739402319383,3.2078,2752.0,2751.4,1.2517]
[1739402319594,0.72667,2751.9,2751.4,1.97848]
[1739402319784,3.2078,2752.0,2751.4,1.2517]
[1739402319984,3.93446,2752.0,2751.5,0.72675]
[1739402320180,0.72668,2751.9,2751.4,1.97847]
[1739402320391,3.93445,2752.0,2751.5,0.72674]
[1739402320686,3.2078,2752.0,2751.4,1.2517]
[1739402320988,3.93445,2752.0,2751.6,0.72673]
[1739402321589,5.4408,2752.0,2751.4,4.4595]
[1739402321793,5.4408,2752.0,2751.7,0.7267]
[1739402322593,2.233,2752.3,2751.4,8.32851514]
[1739402322782,3.9345,2751.8,2751.5,0.72676]
[1739402322982,3.9345,2751.8,2751.4,4.4595]
[1739402322983,3.2078,2752.2,2751.4,4.4595]
[1739402323291,3.2078,2751.8,2751.5,0.72676]
[1739402323485,3.93449,2751.8,2751.5,0.72676]
[1739402323985,3.2078,2751.8,2751.5,0.72676]
[1739402324295,3.2078,2751.8,2751.4,5.18628]
[1739402324487,3.2078,2751.8,2751.4,1.2517]
[1739402324684,0.72672,2751.7,2751.4,1.97848]
[1739402324980,3.2078,2751.8,2751.4,1.2517]
[1739402325482,0.72682,2751.3,2751.2,1.2359]
[1739402325784,3.2078,2751.5,2750.7,1.2313]
[1739402325988,0.72688,2751.1,2750.8,0.72694]
[1739402326389,3.93466,2751.2,2750.7,2.4448]
[1739402326589,3.86901514,2751.4,2750.7,2.4448]
[1739402326792,0.00544939,2751.2,2750.7,2.4448]
[1739402326986,3.2078,2751.1,2750.9,0.72691]
[1739402327184,3.2078,2751.1,2750.7,2.4448]
[1739402327386,0.00544939,2751.2,2750.7,2.4448]
[1739402327586,3.2078,2751.1,2750.7,2.4448]
[1739402327791,3.2078,2751.1,2750.9,0.72691]
[1739402327993,3.2078,2751.1,2751.0,0.7269]
[1739402328703,3.2078,2751.1,2750.7,2.4448]
[1739402329392,3.2078,2751.1,2751.0,0.7269]
[1739402330199,3.2078,2751.1,2750.9,0.72691]
[1739402330495,5.4398,2751.1,2750.7,2.4448]
[1739402330993,6.16669,2751.1,2750.8,0.72694]
[1739402331200,5.4398,2751.1,2751.0,0.7269]
[1739402331502,0.00544939,2751.2,2751.1,0.72687]
[1739402331687,0.73230939,2751.2,2750.8,1.1985]
[1739402331996,0.73230939,2751.2,2751.0,0.72688]
[1739402332187,0.00544939,2751.2,2751.0,0.72688]
[1739402332392,3.2078,2751.1,2751.0,0.72688]
[1739402332801,3.2078,2751.1,2750.7,2.4448]
[1739402332987,3.2078,2751.1,2751.0,0.7269]
[1739402333190,0.00544939,2751.2,2751.1,0.72687]
[1739402333797,3.21324939,2751.2,2751.1,0.72687]
[1739402335198,0.00544939,2751.2,2751.1,0.72687]
[1739402335790,0.00544939,2751.2,2750.7,5.6526]
[1739402335991,3.21324939,2751.2,2751.0,0.72689]
[1739402336198,3.21324939,2751.2,2750.7,2.4448]
[1739402336393,3.94010939,2751.2,2750.9,0.72691]
[1739402336797,3.21324939,2751.2,2750.7,2.4448]
[1739402336991,0.00544939,2751.2,2751.1,0.72687]
[1739402338798,0.00544939,2751.2,2750.7,4.26224]
[1739402339004,0.00544939,2751.2,2751.1,0.72687]
[1739402340003,0.00544939,2751.2,2750.7,5.6526]
[1739402340702,0.73231939,2751.2,2750.7,5.6526]
[1739402340897,0.00544939,2751.2,2750.7,5.6526]
[1739402341101,0.00544939,2751.2,2750.7,7.47005]
[1739402341506,0.00544939,2751.2,2751.0,0.72688]
[1739402341700,0.00544939,2751.2,2750.7,7.47005]
[1739402342002,6.35928086,2751.0,2750.3,1.1985]
[1739402342202,6.35928086,2751.0,2750.2,1.2191]
[1739402342203,0.72698,2750.7,2750.2,1.2191]
[1739402342413,3.2078,2750.7,2750.5,0.72703]
[1739402342710,3.2078,2750.7,2750.2,1.2191]
[1739402342896,0.72702,2750.6,2750.3,0.72708]
[1739402343097,0.72702,2750.6,2750.2,0.7271]
[1739402343399,1.2469,2750.6,2750.4,0.2908]
[1739402343905,3.3971,2750.9,2750.4,0.2908]
[1739402344202,3.2078,2750.7,2750.4,0.2908]
[1739402344410,6.35928086,2750.7,2750.4,0.2908]
[1739402345098,0.72703,2750.5,2750.4,0.2908]
[1739402345306,1.2194,2750.6,2749.6,2.996]
[1739402345505,3.935,2749.9,2749.5,1.2518]
[1739402345707,3.935,2749.9,2749.5,1.97909]
[1739402345907,3.2078,2749.6,2749.4,0.72732]
[1739402346094,3.2078,2749.6,2749.1,4.3874]
[1739402346299,3.2078,2749.6,2749.0,5.09870864]
[1739402346300,3.15148086,2749.4,2749.0,3.84690864]
[1739402346500,3.2078,2749.3,2749.0,3.84690864]
[1739402348310,3.2078,2749.3,2748.6,0.72752]
[1739402348511,3.93517,2749.3,2748.5,6.54032217]
[1739402348806,3.93517,2749.3,2748.7,0.7275]
[1739402349308,0.72738,2749.2,2748.7,0.7275]
[1739402349503,3.2078,2749.3,2748.5,6.54032217]
[1739402349811,3.93516,2749.3,2748.8,0.72747]
[1739402350108,0.72742,2749.1,2748.6,0.72751]
[1739402350410,0.72744,2749.0,2748.5,7.27190411]
[1739402351113,3.2078,2749.0,2748.6,0.72751]
[1739402351305,3.2078,2749.0,2748.5,6.54435411]
[1739402351697,3.93524,2749.0,2748.5,6.54435411]
[1739402351906,0.72739,2749.2,2748.9,0.72745]
[1739402352608,0.72742,2749.1,2748.8,0.72747]
[1739402353002,0.72739,2749.2,2748.5,3.2078]
[1739402353201,3.2078,2749.3,2748.5,3.2078]
[1739402353402,0.72741,2749.1,2748.8,0.72747]
[1739402354011,0.72741,2749.1,2748.5,3.2078]
[1739402354311,3.2078,2749.3,2748.5,3.2078]
[1739402354511,3.2078,2749.3,2748.7,0.72749]
[1739402354710,0.72742,2749.1,2748.8,0.72746]
[1739402354907,0.72745,2749.0,2748.7,0.72749]
[1739402355509,1.81875,2748.8,2748.3,2.4871]
[1739402355708,1.81875,2748.8,2747.8,1.81935]
[1739402355709,1.81871,2748.8,2747.9,3.2078]
[1739402355908,1.81871,2748.8,2747.9,1.1992]
[1739402355909,1.81894,2748.5,2747.9,1.1992]
[1739402356109,0.72769,2748.1,2747.9,1.1992]
[1739402356314,3.2078,2748.4,2747.9,1.1992]
[1739402356805,3.2078,2748.3,2747.5,5.7004]
[1739402357010,3.88364824,2747.6,2746.5,3.2078]
[1739402357214,0.72787,2747.4,2747.0,0.72796]
[1739402357411,9.31744824,2747.6,2746.7,9.358]
[1739402357615,9.31744824,2747.6,2747.3,0.72787]
[1739402357911,9.31744824,2747.6,2746.7,4.69996077]
[1739402357912,3.2078,2747.6,2746.7,4.69996077]
[1739402358111,3.2078,2747.6,2746.9,1.81997]
[1739402358307,3.2078,2747.6,2746.7,6.52005077]
[1739402358809,3.2078,2747.6,2747.3,0.72788]
[1739402359008,3.2078,2747.6,2746.7,6.52005077]
[1739402359213,3.2078,2747.6,2746.7,4.69996077]
[1739402359516,3.2078,2747.6,2747.4,0.72785]
[1739402359910,2.226,2747.7,2747.0,3.2078]
[1739402360111,22.94509763,2748.2,2747.3,5.02746]
[1739402360318,19.06144939,2748.2,2747.4,1.2439]
[1739402360508,3.88364824,2747.9,2747.3,3.2078]
[1739402360709,3.2078,2748.0,2747.3,3.2078]
[1739402361110,0.72784,2747.5,2747.1,0.72792]
[1739402361311,3.88364824,2747.9,2746.9,1.2439]
[1739402361312,3.2078,2747.3,2746.9,1.2439]
[1739402361511,3.2078,2747.0,2746.7,1.2162]
[1739402361810,6.16178,2747.0,2746.3,3.2078]
[1739402362017,3.2078,2747.0,2746.3,5.02812]
[1739402362214,3.2078,2747.0,2746.9,0.72798]
[1739402362816,2.225,2747.3,2746.6,3.2078]
[1739402363016,6.10864824,2747.3,2746.6,3.2078]
[1739402363315,0.7281,2746.5,2746.2,2.4396]
[1739402363508,9.31744824,2746.7,2746.2,2.4396]
[1739402363709,3.88364824,2746.4,2745.7,3.2078]
[1739402364006,3.21325941,2746.6,2745.0,3.2078]
[1739402364007,7.09144824,2745.8,2745.0,3.2078]
[1739402364212,3.88364824,2745.5,2744.8,0.72852]
[1739402364408,3.2078,2745.2,2744.6,1.2499]
[1739402364810,0.00545941,2745.2,2744.6,1.2499]
[1739402365411,0.00545941,2745.2,2744.8,0.72852]
[1739402365612,0.00545941,2745.2,2744.7,0.72857]
[1739402365811,3.21325941,2745.2,2744.6,1.2499]
[1739402366113,3.2078,2744.9,2744.2,3.2078]
[1739402366616,3.21325941,2745.2,2745.1,0.72846]
[1739402366820,0.00545941,2745.2,2745.1,0.72846]
[1739402367114,0.00545941,2745.2,2744.8,0.72853]
[1739402367313,2.225,2745.1,2744.7,0.72855]
[1739402367621,2.225,2745.1,2744.5,3.2078]
[1739402367916,2.225,2745.1,2744.8,0.72853]
[1739402368217,2.225,2745.1,2745.0,0.72849]
[1739402368820,2.225,2745.1,2744.6,1.232]
[1739402369011,0.00545941,2745.2,2744.6,1.232]
[1739402369318,0.00545941,2745.2,2745.1,0.72846]
[1739402370615,0.00545941,2745.2,2745.1,3.93626]
[1739402370819,1.002e-05,2745.2,2745.1,9.93626]
[1739402372212,1.002e-05,2745.2,2745.1,3.93626]
[1739402372416,1.002e-05,2745.2,2744.9,1.28365941]
[1739402372611,1.002e-05,2745.2,2744.9,0.00545941]
[1739402372809,0.72848,2745.1,2744.9,0.00545941]
[1739402373111,0.72849,2745.0,2744.9,0.00545941]
[1739402373313,2.66109,2745.0,2744.9,0.00545941]
[1739402374218,2.224,2745.0,2744.9,0.00545941]
[1739402374615,3.20781002,2745.2,2744.9,0.00545941]
[1739402374818,2.224,2745.1,2744.9,0.73395941]
[1739402375318,2.224,2745.1,2744.9,0.00545941]
[1739402375828,2.224,2745.1,2744.9,0.73395941]
[1739402376026,3.20781002,2745.2,2744.9,0.00545941]
[1739402376324,1.002e-05,2745.2,2745.1,0.72846]
[1739402376815,1.002e-05,2745.2,2745.1,1.88576]
[1739402377318,1.002e-05,2745.2,2745.1,5.09356]
[1739402377523,1.002e-05,2745.2,2745.1,1.88576]
[1739402378012,1.002e-05,2745.2,2745.1,5.09356]
[1739402380824,1.002e-05,2745.2,2745.1,5.38496]
[1739402382022,1.002e-05,2745.2,2745.1,11.38496]
[1739402383023,3.2078,2746.3,2745.2,1.82109]
[1739402383223,0.72818,2746.2,2746.1,0.72819]
[1739402383423,3.2078,2746.3,2746.0,0.72821]
[1739402383622,3.2078,2746.3,2745.6,4.3882]
[1739402383919,3.2078,2746.3,2746.2,0.72817]
[1739402384129,0.00545941,2746.2,2746.1,0.7282]
[1739402385926,3.93588,2746.6,2746.4,0.7281]
[1739402386129,3.93588,2746.6,2746.0,1.82056]
[1739402386320,3.2078,2746.6,2746.4,0.7281]
[1739402386515,3.2078,2746.6,2745.9,3.2078]
[1739402386516,0.72811,2746.5,2745.9,3.2078]
[1739402386824,0.72826,2745.9,2745.3,3.2078]
[1739402387027,3.2078,2745.7,2745.0,4.4012]
[1739402387529,3.2078,2745.7,2745.2,0.72843]
[1739402387729,3.2078,2745.7,2745.5,0.72835]
[1739402387926,3.93611,2745.7,2745.0,4.4012]
[1739402388127,3.93611,2745.7,2745.3,0.72841]
[1739402388523,3.2078,2745.7,2745.0,6.22242]
[1739402388830,3.2078,2745.7,2745.4,0.72836]
[1739402389128,3.2078,2745.7,2745.0,6.22242]
[1739402389429,3.2078,2745.7,2745.0,4.4012]
[1739402389628,3.93612,2745.7,2745.3,0.7284]
[1739402389936,21.3,2746.1,2745.0,4.4012]
[1739402389937,24.5068,2746.1,2745.0,4.4012]
[1739402390226,24.5068,2746.1,2745.8,0.72827]
[1739402391024,24.5068,2746.1,2745.3,1.82103]
[1739402391225,24.5068,2746.1,2746.0,0.72822]
[1739402391226,22.2868,2746.1,2746.0,0.72822]
[1739402392438,22.2868,2746.1,2745.6,3.2078]
[1739402392630,22.2868,2746.1,2746.0,0.72822]
[1739402394033,22.2868,2746.1,2745.5,3.2078]
[1739402394237,22.2868,2746.1,2745.9,0.72823]
[1739402394731,22.2868,2746.1,2745.8,0.72825]
[1739402394934,22.2868,2746.1,2745.5,3.2078]
[1739402395130,3.2078,2745.8,2745.1,0.2914]
[1739402395329,3.2078,2745.5,2745.1,0.2914]
[1739402395525,2.3672,2745.4,2745.1,0.2914]
[1739402395728,3.0956,2745.4,2745.1,1.01985]
[1739402396330,3.0956,2745.4,2745.1,1.01986]
[1739402396526,3.0956,2745.4,2745.1,0.2914]
[1739402396527,2.3672,2745.4,2745.1,0.2914]
[1739402396833,3.09559,2745.4,2745.1,1.01985]
[1739402397030,3.0956,2745.4,2745.1,0.2914]
[1739402397631,2.3672,2745.4,2745.1,1.01986]
[1739402398232,2.3672,2745.4,2745.1,0.2914]
[1739402398434,3.0956,2745.4,2745.1,1.01986]
[1739402398633,2.3672,2745.4,2745.1,1.01986]
[1739402399030,2.3672,2745.4,2745.2,0.72843]
[1739402399328,3.0956,2745.4,2745.1,0.2914]
[1739402399536,3.0956,2745.4,2745.1,1.01986]
[1739402399735,2.3672,2745.4,2745.1,0.2914]
[1739402400331,2.3672,2745.4,2745.1,1.01984]
[1739402400533,3.09559,2745.4,2745.1,1.01985]
[1739402400737,2.3672,2745.4,2745.1,0.2914]
[1739402400925,0.72843,2745.2,2745.1,0.2914]
[1739402401129,3.2078,2745.2,2745.1,0.2914]
[1739402401738,2.3672,2745.4,2745.1,0.2914]
[1739402401927,2.3672,2745.4,2745.3,0.72841]
[1739402402124,2.3672,2745.4,2745.1,0.2914]
[1739402402328,3.93622,2745.3,2745.1,0.2914]
[1739402402539,3.93623,2745.3,2745.1,0.2914]
[1739402402926,3.2078,2745.3,2745.2,0.72843]
[1739402403128,2.3672,2745.4,2745.1,0.2914]
[1739402403129,2.3672,2745.4,2745.3,0.72841]
[1739402403634,3.2078,2745.6,2745.5,0.72836]
[1739402404635,3.2078,2745.6,2745.1,0.2914]
[1739402404836,0.72842,2745.3,2745.1,0.2914]
[1739402405036,3.93622,2745.3,2745.1,0.2914]
[1739402405233,3.2078,2745.3,2745.2,0.72843]
[1739402410937,1.82066,2745.9,2745.6,0.72833]
[1739402410938,3.2078,2745.7,2745.6,0.72833]
[1739402411139,3.2078,2745.7,2745.3,2.2979]
[1739402411337,3.2078,2745.7,2745.1,3.2078]
[1739402411544,3.2078,2745.7,2745.4,0.72837]
[1739402411733,1.82083,2745.6,2745.1,1.1125]
[1739402411928,1.82083,2745.6,2744.9,0.00545941]
[1739402411929,0.72849,2745.0,2744.9,0.00545941]
[1739402412536,1.1276,2745.0,2744.9,0.00545941]
[1739402412741,1.85609,2745.0,2744.9,0.00545941]
[1739402414638,1.1276,2745.0,2744.9,0.00545941]
[1739402414838,1.85609,2745.0,2744.9,0.00545941]
[1739402416543,7.1276,2745.0,2744.1,4.3932]
[1739402416847,3.2078,2744.5,2743.8,4.3941]
[1739402417044,7.1323222,2744.2,2743.7,0.27052726]
[1739402417241,7.1323222,2744.2,2743.9,0.2915]
[1739402417945,7.8610222,2744.2,2743.9,0.2915]
[1739402418239,0.72875,2744.0,2743.9,0.2915]
[1739402418643,3.2078,2744.2,2743.9,0.2915]
[1739402419046,3.2078,2744.2,2743.9,1.02027]
[1739402419245,3.2078,2744.2,2743.9,0.2915]
[1739402419449,3.2078,2744.2,2744.0,0.72874]
[1739402419954,3.2078,2744.2,2743.9,0.2915]
[1739402420455,0.72874,2744.1,2743.9,0.2915]
[1739402420645,0.72875,2744.0,2743.9,0.2915]
[1739402420840,13.1323222,2744.2,2742.7,3.2078]
[1739402421046,0.72894,2743.3,2742.4,3.2078]
[1739402421245,7.8612522,2743.4,2742.5,1.82289]
[1739402421445,2.213,2743.5,2742.7,3.2078]
[1739402421652,2.213,2743.5,2743.0,3.2078]
[1739402421850,2.213,2743.5,2743.2,0.72895]
[1739402422058,5.4208,2743.5,2743.0,3.2078]
[1739402422650,3.2078,2743.8,2743.1,1.82249]
[1739402422851,3.2078,2743.8,2743.7,0.72883]
[1739402423352,2.213,2744.2,2743.5,1.82218]
[1739402423656,2.213,2744.2,2744.1,0.72873]
[1739402423859,2.213,2744.2,2743.6,4.4193]
[1739402424750,0.72876,2744.0,2743.6,4.4193]
[1739402424955,2.213,2744.2,2743.6,4.4193]
[1739402425152,0.72881,2743.8,2743.6,1.94035]
[1739402425366,7.1323222,2744.1,2743.6,1.2115]
[1739402425554,0.72877,2744.0,2743.7,0.72883]
[1739402425754,7.1323222,2744.1,2743.6,1.2115]
[1739402425958,7.1323222,2744.1,2743.6,1.94034]
[1739402426269,7.1323222,2744.1,2743.6,1.2115]
[1739402427261,0.72883,2743.7,2743.6,1.2115]
[1739402427470,7.1323222,2744.1,2743.6,1.2115]
[1739402427652,0.7288,2743.9,2743.6,1.2115]
[1739402427852,0.7288,2743.9,2743.6,1.94035]
[1739402428055,3.2078,2744.1,2743.6,1.2115]
[1739402428254,3.93655,2744.1,2743.8,0.7288]
[1739402428458,0.72875,2744.0,2743.7,0.72882]
[1739402428660,0.72881,2743.8,2743.6,1.2115]
[1739402428856,0.72882,2743.8,2743.6,1.2115]
[1739402429163,3.2078,2744.1,2743.6,1.94036]
[1739402429164,0.72879,2743.9,2743.6,1.94036]
[1739402429468,0.72877,2744.0,2743.7,0.72882]
[1739402429763,3.2078,2744.1,2743.6,1.2115]
[1739402430164,3.2078,2744.1,2743.9,0.72876]
[1739402430467,3.93654,2744.1,2743.8,0.72879]
[1739402430656,3.2078,2744.1,2743.8,0.72879]
[1739402430962,3.93655,2744.1,2743.8,0.72879]
[1739402431263,3.2078,2744.1,2743.9,0.72876]
[1739402431460,0.00545941,2744.3,2743.6,6.24143]
[1739402431655,0.00545941,2744.3,2744.0,0.72873]
[1739402431855,0.72871,2744.2,2744.0,0.72874]
[1739402432165,0.00545941,2744.3,2743.6,6.24143]
[1739402432353,3.9245222,2744.1,2743.6,4.4193]
[1739402432556,7.1323222,2744.1,2743.6,1.2115]
[1739402432752,7.1323222,2744.1,2743.7,0.72881]
[1739402433359,0.72879,2743.9,2743.7,0.72881]
[1739402433564,3.2078,2744.1,2743.6,1.2115]
[1739402434263,3.2078,2744.1,2743.6,3.03364]
[1739402434563,2.21545941,2744.3,2744.2,0.7287]
[1739402434764,1.82176,2744.2,2743.3,3.2078]
[1739402434955,3.2078,2744.0,2743.3,3.2078]
[1739402435158,0.72876,2744.0,2743.8,0.72879]
[1739402435562,2.21545941,2744.3,2743.4,1.82229]
[1739402435962,0.72877,2744.0,2743.6,1.82216]
[1739402436270,0.72876,2744.0,2743.9,0.72878]
[1739402436566,0.72874,2744.1,2743.6,1.82216]
[1739402436766,0.72877,2744.0,2743.9,0.72878]
[1739402437566,2.21445941,2744.3,2743.6,3.2078]
[1739402437764,2.94314941,2744.3,2744.1,0.72871]
[1739402438065,0.7287,2744.2,2744.0,0.72875]
[1739402438763,0.72874,2744.1,2743.9,0.72877]
[1739402438962,0.72874,2744.1,2743.6,3.2078]
[1739402438963,3.2078,2744.1,2743.6,3.2078]
[1739402439267,0.72877,2744.0,2743.8,0.7288]
[1739402439662,3.2078,2744.1,2743.4,1.82228]
[1739402439864,3.2078,2743.7,2743.2,3.0139]
[1739402440065,3.2078,2743.7,2743.5,0.72889]
[1739402440358,3.2078,2743.7,2743.2,1.1915]
[1739402440972,0.72887,2743.6,2743.4,0.7289]
[1739402441464,4.23539722,2743.9,2743.6,0.72886]
[1739402441670,4.23539722,2743.9,2743.8,0.72881]
[1739402441867,4.3699,2744.1,2743.4,1.82229]
[1739402442070,0.72876,2744.0,2743.8,0.72878]
[1739402442367,4.3699,2744.1,2743.7,0.72882]
[1739402442368,0.72878,2743.9,2743.7,0.72882]
[1739402442570,3.2078,2743.8,2743.6,0.72885]
[1739402442757,2.208,2743.7,2743.5,0.72888]
[1739402442961,2.208,2743.7,2743.2,1.4831]
[1739402443366,2.208,2743.7,2743.4,0.72891]
[1739402443561,0.72886,2743.6,2743.3,0.72892]
[1739402443762,3.2078,2743.5,2743.2,0.2916]
[1739402444076,3.9367,2743.5,2743.2,1.02055]
[1739402444263,3.2078,2743.5,2743.2,0.2916]
[1739402444666,0.72894,2743.3,2743.2,0.2916]
[1739402444964,3.13609722,2743.3,2743.2,1.02057]
[1739402445371,3.13609722,2743.3,2743.2,0.2916]
[1739402446067,3.86503722,2743.3,2743.2,0.2916]
[1739402446270,3.13609722,2743.3,2743.2,0.2916]
[1739402446469,3.13609722,2743.3,2743.2,1.02057]
[1739402446673,3.13609722,2743.3,2743.2,0.1051751]
[1739402447074,3.13609722,2743.3,2743.2,0.8341451]
[1739402447774,3.13609722,2743.3,2743.2,0.1051751]
[1739402449273,3.13609722,2743.3,2743.2,0.8341451]
[1739402450473,3.13609722,2743.3,2743.2,0.1051751]
[1739402450675,3.13609722,2743.3,2743.2,0.8341451]
[1739402451379,3.13609722,2743.3,2743.2,0.1051751]
[1739402451974,3.86503722,2743.3,2743.2,0.1051751]
[1739402452173,3.13609722,2743.3,2743.2,0.1051751]
[1739402452879,3.13609722,2743.3,2743.2,0.76699687]
[1739402453073,3.13609722,2743.3,2743.2,0.03802687]
[1739402454080,3.13609722,2743.3,2743.2,0.76699687]
[1739402455679,3.86503722,2743.3,2743.2,0.03802687]
[1739402456383,3.86503722,2743.3,2743.2,1e-08]
[1739402456576,0.72894,2743.3,2743.2,1e-08]
[1739402456974,1.82584,2743.3,2743.2,1e-08]
[1739402458480,2.2898352,2743.3,2743.2,1e-08]
[1739402458678,1.82584,2743.3,2743.2,1e-08]
[1739402458981,1.0969,2743.3,2743.0,0.729]
[1739402459175,6.34389722,2743.1,2743.0,0.72902]
[1739402459374,8.54889722,2743.1,2742.5,6.12976]
[1739402459576,8.54889722,2743.1,2742.5,4.3069]
[1739402459777,0.72906,2742.9,2742.7,0.72909]
[1739402459974,6.34389722,2742.8,2742.0,1.82318]
[1739402460178,3.2078,2742.4,2742.0,1.1012]
[1739402460575,3.2078,2742.4,2742.3,0.7292]
[1739402460773,3.2078,2742.4,2742.0,1.1012]
[1739402460975,3.2078,2742.4,2742.3,0.7292]
[1739402461176,3.2078,2742.4,2742.0,1.1012]
[1739402461376,3.2078,2742.4,2742.3,0.7292]
[1739402461581,3.2078,2742.4,2742.0,1.1012]
[1739402461779,3.13609722,2742.2,2741.9,5.05329]
[1739402461980,3.13609722,2742.2,2742.0,0.72928]
[1739402462186,3.13609722,2742.2,2741.4,2.325]
[1739402462187,3.2078,2742.1,2741.4,2.325]
[1739402462487,3.2078,2741.5,2740.4,0.27980404]
[1739402462782,3.13609722,2740.8,2740.7,0.72963]
[1739402462983,3.13609722,2740.8,2740.3,4.3706]
[1739402463177,2.203,2740.7,2740.3,1.1628]
[1739402463382,3.13609722,2740.8,2740.7,0.72963]
[1739402463683,2.203,2740.9,2740.7,0.72962]
[1739402464076,2.203,2741.1,2741.0,0.72955]
[1739402464388,5.33909722,2741.1,2740.6,0.72964]
[1739402464687,3.13609722,2740.8,2740.5,0.72966]
[1739402464980,3.13609722,2740.8,2740.3,4.3706]
[1739402465280,3.13609722,2740.5,2739.9,3.2078]
[1739402465581,3.13609722,2740.0,2739.6,0.7299]
[1739402465788,3.13609722,2739.7,2739.5,3.2078]
[1739402465990,3.13609722,2739.7,2738.9,1.1697]
[1739402465991,3.13609722,2739.7,2739.2,3.2078]
[1739402466288,3.13609722,2739.7,2739.4,0.72996]
[1739402466481,3.13609722,2739.7,2739.2,3.2078]
[1739402466788,2.203,2739.8,2739.7,0.7299]
[1739402467684,0.00546946,2739.9,2739.5,3.2078]
[1739402467880,7.14917385,2740.9,2739.8,3.2078]
[1739402468080,1.84620562,2742.0,2739.8,3.2078]
[1739402468081,7.14917385,2741.2,2741.1,0.72952]
[1739402468391,3.2078,2741.2,2741.1,0.72952]
[1739402468978,6.14437385,2741.8,2740.9,3.21326946]
[1739402469278,0.00546946,2741.4,2741.3,0.72947]
[1739402470984,0.00546946,2741.4,2741.1,0.7295]